bitfinex/quotes_SOLUSD_20241016
["timestamp","ask_amount","ask_price","bid_price","bid_amount"]
[1729092144184,16.0502,155.48,155.4,6.4349]
[1729092144689,6.4333,155.45,155.41,0.12549]
[1729092145266,16.1838,155.44,155.39,0.6205612]
[1729092145569,6.4344,155.42,155.39,0.6205612]
[1729092145967,6.4345,155.41,155.4,0.12549]
[1729092146372,6.435,155.4,155.39,0.6205612]
[1729092146584,6.435,155.4,155.39,0.7460512]
[1729092146772,6.435,155.4,155.39,0.6205612]
[1729092146963,6.4344,155.42,155.39,0.6205612]
[1729092147387,6.4344,155.42,155.4,0.12549]
[1729092147590,20.0,155.47,155.4,0.12549]
[1729092147889,6.4335,155.44,155.4,0.12549]
[1729092148188,6.433,155.45,155.4,0.12549]
[1729092148488,6.4334,155.44,155.4,0.12549]
[1729092149386,6.4338,155.43,155.4,0.12549]
[1729092150684,6.4342,155.42,155.4,0.12549]
[1729092150870,6.4345,155.41,155.4,0.12549]
[1729092151296,6.435,155.4,155.39,0.6205612]
[1729092151786,6.435,155.4,155.39,0.7460512]
[1729092152792,6.4347,155.41,155.4,0.12549]
[1729092152981,6.4342,155.42,155.4,0.12549]
[1729092153180,6.4345,155.41,155.4,0.12549]
[1729092153869,6.435,155.4,155.39,0.6205612]
[1729092154486,6.435,155.4,155.39,0.7460512]
[1729092156417,30.311884,155.4,155.39,0.6205612]
[1729092156687,43.876884,155.39,155.29,29.1971]
[1729092156878,6.4378,155.34,155.29,29.1971]
[1729092157196,16.0902,155.38,155.32,0.12549]
[1729092157197,6.4369,155.36,155.32,0.12549]
[1729092157892,6.4363,155.37,155.33,0.12549]
[1729092158097,6.4363,155.37,155.33,6.56319]
[1729092158301,6.4363,155.37,155.33,0.12549]
[1729092158476,6.4919,155.43,155.33,16.0943]
[1729092158680,6.4361,155.38,155.34,0.12549]
[1729092159095,6.4359,155.38,155.34,6.56269]
[1729092159291,6.4365,155.37,155.34,0.12549]
[1729092161291,16.0858,155.42,155.34,0.12549]
[1729092161497,6.4367,155.36,155.32,6.4382]
[1729092161900,6.4367,155.36,155.33,0.12549]
[1729092162416,16.1878,155.4,155.33,0.12549]
[1729092162579,6.4377,155.34,155.3,16.0973]
[1729092162777,16.09,155.38,155.3,16.0973]
[1729092162974,6.4379,155.33,155.31,0.12549]
[1729092163799,6.4379,155.33,155.29,6.4394]
[1729092164381,15.3505,155.37,155.29,6.4394]
[1729092164592,6.4376,155.34,155.29,6.4394]
[1729092165599,6.4376,155.34,155.3,0.12549]
[1729092166379,6.4376,155.34,155.29,6.4394]
[1729092166380,6.4386,155.32,155.28,20.0]
[1729092166580,22.1436,155.36,155.27,16.1009]
[1729092166796,6.4383,155.32,155.28,6.4399]
[1729092167002,6.4383,155.32,155.29,0.12549]
[1729092167288,6.0515,155.36,155.29,16.22359]
[1729092167477,6.4373,155.35,155.31,0.12549]
[1729092167677,13.21224695,155.4,155.3,6.4388]
[1729092167678,6.68884695,155.4,155.33,20.0]
[1729092167890,6.4366,155.37,155.32,21.5045]
[1729092168092,6.4371,155.35,155.31,20.0]
[1729092168287,6.437,155.36,155.31,0.12549]
[1729092168494,6.437,155.36,155.23,22.8826612]
[1729092168495,16.2232,155.36,155.23,22.8826612]
[1729092168685,6.4391,155.3,155.24,22.5452]
[1729092168886,6.4399,155.29,155.24,16.1037]
[1729092169205,6.44,155.28,155.24,16.1037]
[1729092169406,6.44,155.28,155.23,7.0625612]
[1729092169583,6.44,155.28,155.24,0.12549]
[1729092169902,6.44,155.28,155.23,7.0625612]
[1729092170076,6.4395,155.29,155.23,7.0625612]
[1729092170275,6.4391,155.3,155.23,0.6205612]
[1729092170481,6.4391,155.3,155.26,0.12549]
[1729092171291,20.0,155.34,155.24,0.12549]
[1729092171489,23.776884,155.34,155.3,0.12549]
[1729092171687,6.4379,155.33,155.29,0.12549]
[1729092171883,6.4372,155.35,155.29,6.56479]
[1729092172082,6.4376,155.34,155.29,0.12549]
[1729092173394,6.4386,155.32,155.27,26.4403]
[1729092173913,6.4386,155.32,155.28,0.12549]
[1729092175302,0.1,155.32,155.23,0.6205612]
[1729092175604,6.4401,155.28,155.23,7.0622612]
[1729092175795,6.4401,155.28,155.24,6.56709]
[1729092175991,6.4395,155.29,155.24,0.12549]
[1729092176202,6.4395,155.29,155.24,6.4415]
[1729092177300,6.4395,155.29,155.25,0.12549]
[1729092177804,0.1,155.31,155.24,16.1035]
[1729092178009,0.1,155.32,155.24,16.1035]
[1729092178403,6.4402,155.28,155.25,0.12549]
[1729092180508,6.4409,155.26,155.23,0.6205612]
[1729092180685,6.4404,155.27,155.23,0.6205612]
[1729092180893,16.0962,155.32,155.26,0.12549]
[1729092180894,6.4394,155.3,155.26,0.12549]
[1729092181101,6.4383,155.32,155.28,0.12549]
[1729092181303,16.1232,155.36,155.3,0.12549]
[1729092182010,16.1232,155.36,155.28,0.12549]
[1729092182509,6.4379,155.33,155.28,6.56539]
[1729092182712,6.4379,155.33,155.27,16.1003]
[1729092182713,16.1232,155.36,155.27,0.12549]
[1729092182902,22.5601,155.36,155.32,0.12549]
[1729092183092,6.4369,155.36,155.32,0.12549]
[1729092183298,6.4369,155.36,155.31,0.12549]
[1729092184517,6.4369,155.36,155.31,6.56409]
[1729092185016,6.4363,155.37,155.33,0.12549]
[1729092185605,0.1,155.39,155.3,16.0978]
[1729092185802,6.4373,155.35,155.3,16.0978]
[1729092186610,6.4373,155.35,155.31,0.12549]
[1729092186916,6.4367,155.36,155.31,6.56419]
[1729092187115,20.0,155.4,155.31,0.12549]
[1729092187293,6.4361,155.38,155.33,0.12549]
[1729092188307,38.0903,155.41,155.32,6.438]
[1729092188308,15.926,155.41,155.34,0.12549]
[1729092188499,6.435,155.4,155.34,6.56259]
[1729092189206,6.78697768,155.44,155.34,6.56259]
[1729092189416,6.4355,155.39,155.34,6.56259]
[1729092189597,6.4355,155.39,155.34,0.12549]
[1729092190516,6.4351,155.4,155.34,6.56259]
[1729092190718,6.4351,155.4,155.34,0.12549]
[1729092190918,6.4338,155.43,155.38,0.12549]
[1729092191215,6.4345,155.41,155.38,0.12549]
[1729092192100,6.4345,155.41,155.34,20.0]
[1729092192101,6.4363,155.37,155.32,6.4381]
[1729092192512,6.4363,155.37,155.33,0.12549]
[1729092193524,6.4374,155.35,155.3,16.0973]
[1729092193709,6.4375,155.34,155.3,16.0973]
[1729092194014,16.1879,155.4,155.31,0.12549]
[1729092194015,6.4371,155.35,155.31,0.12549]
[1729092194519,23.776884,155.39,155.31,0.12549]
[1729092194703,6.4366,155.36,155.31,6.56379]
[1729092195416,6.4366,155.36,155.31,0.12549]
[1729092196300,16.085,155.43,155.33,0.12549]
[1729092196829,6.435,155.4,155.36,0.12549]
[1729092197005,6.4347,155.41,155.36,6.56189]
[1729092197398,6.435,155.4,155.36,0.12549]
[1729092197608,6.435,155.4,155.35,26.56239]
[1729092199323,16.0839,155.44,155.35,20.12549]
[1729092199505,6.4354,155.39,155.35,20.12549]
[1729092199703,6.435,155.4,155.35,26.56249]
[1729092200801,6.4366,155.36,155.31,22.5352]
[1729092201712,6.4363,155.37,155.32,6.56349]
[1729092201903,6.4359,155.38,155.34,0.12549]
[1729092202801,23.776884,155.42,155.34,0.12549]
[1729092203526,23.776884,155.42,155.36,0.12549]
[1729092203710,6.4354,155.39,155.36,0.12549]
[1729092204313,6.435,155.4,155.36,0.12549]
[1729092204625,6.434,155.43,155.38,6.4357]
[1729092204809,15.8356,155.45,155.39,0.12549]
[1729092204810,6.4346,155.41,155.39,0.12549]
[1729092205010,6.4343,155.42,155.39,0.12549]
[1729092205418,6.4343,155.42,155.37,0.12549]
[1729092205631,15.8356,155.45,155.37,0.12549]
[1729092205836,6.4338,155.43,155.37,6.56169]
[1729092206004,15.8356,155.45,155.38,20.0]
[1729092206204,15.8356,155.45,155.38,26.4357]
[1729092206447,15.8356,155.45,155.39,0.12549]
[1729092207406,6.4334,155.44,155.39,0.12549]
[1729092207716,6.4349,155.41,155.35,16.2281]
[1729092207916,6.4356,155.39,155.35,16.2281]
[1729092208217,6.4356,155.39,155.33,6.4378]
[1729092208411,6.4356,155.39,155.34,0.12549]
[1729092208624,16.0857,155.42,155.32,6.6189]
[1729092208823,6.4355,155.39,155.33,6.4378]
[1729092209212,6.4355,155.39,155.34,20.12549]
[1729092209421,6.4345,155.41,155.35,6.437]
[1729092209621,6.4345,155.41,155.36,0.12549]
[1729092210442,23.776884,155.44,155.36,0.12549]
[1729092210734,31.9183,155.45,155.38,0.12549]
[1729092210735,6.4338,155.43,155.38,0.12549]
[1729092210916,31.9183,155.45,155.38,0.12549]
[1729092211239,6.4342,155.42,155.38,0.12549]
[1729092212921,15.8356,155.45,155.38,0.12549]
[1729092213120,6.4334,155.44,155.4,0.12549]
[1729092213407,22.2685,155.45,155.4,0.12549]
[1729092213628,6.4326,155.46,155.4,0.12549]
[1729092214014,22.22603524,155.49,155.42,0.12549]
[1729092214213,6.4315,155.49,155.44,0.12549]
[1729092214708,6.4317,155.48,155.44,0.12549]
[1729092215132,6.4317,155.48,155.42,6.55949]
[1729092216233,43.776884,155.51,155.42,0.12549]
[1729092216418,22.5483,155.53,155.4,20.0]
[1729092216419,20.0,155.52,155.45,0.12549]
[1729092216617,6.4307,155.51,155.45,6.55819]
[1729092218239,20.0,155.52,155.45,6.55819]
[1729092218441,6.4308,155.5,155.45,6.55819]
[1729092218942,6.4308,155.5,155.43,16.0836]
[1729092218943,6.4308,155.5,155.44,6.55869]
[1729092219635,23.776884,155.49,155.38,6.5971]
[1729092220022,20.0,155.48,155.38,6.5971]
[1729092220221,6.4337,155.43,155.39,0.12549]
[1729092220741,6.4334,155.44,155.39,0.12549]
[1729092223222,6.4341,155.43,155.39,0.12549]
[1729092229441,6.433,155.45,155.41,0.12549]
[1729092229625,6.433,155.45,155.4,0.12549]
[1729092229940,6.4335,155.44,155.4,0.12549]
[1729092230143,6.4322,155.47,155.42,0.12549]
[1729092230324,22.5483,155.53,155.42,0.12549]
[1729092230526,6.4317,155.48,155.44,0.12549]
[1729092230836,6.4314,155.49,155.44,0.12549]
[1729092231039,16.0753,155.52,155.45,0.12549]
[1729092231217,22.5483,155.53,155.45,6.55809]
[1729092231418,6.4306,155.51,155.45,6.55809]
[1729092238846,16.4707,155.53,155.45,0.12549]
[1729092239054,6.4291,155.55,155.5,0.12549]
[1729092240634,6.4292,155.54,155.5,0.12549]
[1729092242226,6.6843683,155.6,155.5,20.0]
[1729092242533,6.4284,155.56,155.51,16.0756]
[1729092242743,6.4277,155.58,155.52,6.55549]
[1729092243051,12.95017357,155.61,155.52,0.12549]
[1729092243254,6.4272,155.59,155.56,0.12549]
[1729092243627,6.4268,155.6,155.55,0.12549]
[1729092244931,6.4263,155.61,155.55,6.55409]
[1729092245451,6.4263,155.61,155.56,16.19579]
[1729092245948,6.4263,155.61,155.56,22.62409]
[1729092246327,6.4263,155.61,155.56,16.19579]
[1729092246523,6.4259,155.62,155.58,0.12549]
[1729092247749,6.4278,155.58,155.54,20.0]
[1729092247933,6.4284,155.56,155.51,6.4303]
[1729092248331,6.4284,155.56,155.52,0.12549]
[1729092248532,6.428,155.57,155.52,0.12549]
[1729092249124,6.4277,155.58,155.54,0.12549]
[1729092249330,6.4282,155.57,155.54,0.12549]
[1729092249541,23.776884,155.59,155.51,20.0]
[1729092249728,6.4284,155.56,155.51,20.0]
[1729092249929,6.4284,155.56,155.52,0.12549]
[1729092251056,6.4284,155.56,155.51,20.0]
[1729092251259,6.4284,155.56,155.52,0.12549]
[1729092251643,16.0675,155.6,155.52,0.12549]
[1729092251644,6.4296,155.53,155.52,0.12549]
[1729092251858,6.4296,155.53,155.49,20.0]
[1729092252156,23.776884,155.57,155.5,0.12549]
[1729092252529,23.776884,155.57,155.49,0.12549]
[1729092253155,6.4288,155.55,155.49,6.55659]
[1729092253351,6.4288,155.55,155.51,0.12549]
[1729092254257,6.4292,155.54,155.49,20.12549]
[1729092254842,6.4299,155.53,155.47,22.5116]
[1729092255043,6.4299,155.53,155.48,20.0]
[1729092255444,6.4299,155.53,155.49,0.12549]
[1729092255942,15.7907,155.56,155.49,0.12549]
[1729092256147,22.2194,155.56,155.51,0.12549]
[1729092256743,6.4288,155.55,155.51,0.12549]
[1729092257348,6.4288,155.55,155.5,20.12549]
[1729092258835,6.4292,155.54,155.5,20.12549]
[1729092259566,6.4301,155.52,155.46,38.8344]
[1729092259855,6.4308,155.5,155.46,16.0805]
[1729092260445,6.4305,155.51,155.47,0.12549]
[1729092261360,6.4292,155.54,155.49,0.12549]
[1729092263754,23.776884,155.55,155.47,20.0]
[1729092264265,6.4301,155.52,155.48,0.12549]
[1729092267462,23.776884,155.55,155.48,0.12549]
[1729092267664,6.4303,155.52,155.48,0.12549]
[1729092268265,6.4306,155.51,155.48,0.12549]
[1729092268555,6.43,155.52,155.48,0.12549]
[1729092269858,6.4314,155.49,155.47,0.12549]
[1729092270164,16.0734,155.54,155.47,0.12549]
[1729092270462,6.4309,155.5,155.47,0.12549]
[1729092271856,23.776884,155.53,155.47,0.12549]
[1729092272167,6.4305,155.51,155.47,0.12549]
[1729092272465,6.4308,155.5,155.47,0.12549]
[1729092272844,6.4305,155.51,155.47,0.12549]
[1729092274838,23.776884,155.53,155.45,16.0815]
[1729092275039,6.4312,155.49,155.46,0.12549]
[1729092275745,23.776884,155.53,155.46,0.12549]
[1729092275746,6.4309,155.5,155.46,0.12549]
[1729092275952,6.4307,155.51,155.46,6.55799]
[1729092276864,23.776884,155.53,155.46,0.12549]
[1729092277055,6.4309,155.5,155.46,0.12549]
[1729092279568,23.776884,155.53,155.45,20.0]
[1729092279569,6.4317,155.48,155.45,20.0]
[1729092279745,6.4317,155.48,155.45,0.12549]
[1729092280367,23.776884,155.51,155.44,0.12549]
[1729092280571,15.8869,155.5,155.44,0.12549]
[1729092280774,6.4325,155.46,155.42,16.0845]
[1729092281066,6.4325,155.46,155.43,0.12549]
[1729092281442,6.4322,155.47,155.43,0.12549]
[1729092282667,6.4311,155.5,155.46,0.12549]
[1729092282871,6.4314,155.49,155.46,0.12549]
[1729092284470,6.4314,155.49,155.45,0.12549]
[1729092287074,6.4316,155.48,155.45,0.12549]
[1729092287578,23.776884,155.52,155.45,0.12549]
[1729092287579,6.4314,155.49,155.45,0.12549]
[1729092289052,23.776884,155.52,155.45,0.12549]
[1729092289272,6.4318,155.48,155.45,0.12549]
[1729092291172,23.776884,155.52,155.45,0.12549]
[1729092291374,6.4314,155.49,155.45,0.12549]
[1729092291581,23.776884,155.52,155.45,0.12549]
[1729092291878,6.4309,155.5,155.45,0.12549]
[1729092292178,6.4309,155.5,155.45,6.55809]
[1729092293180,6.68541427,155.53,155.5,0.12549]
[1729092293371,16.5876,155.58,155.5,0.12549]
[1729092293681,11.22637976,155.57,155.53,0.12549]
[1729092293877,4.79837976,155.56,155.53,0.12549]
[1729092294083,16.5876,155.58,155.53,0.12549]
[1729092294293,6.68265729,155.61,155.51,20.12549]
[1729092294583,11.22501988,155.6,155.56,0.12549]
[1729092294765,6.4267,155.6,155.56,0.12549]
[1729092295371,16.0525,155.62,155.55,0.12549]
[1729092295561,4.79786658,155.61,155.57,0.12549]
[1729092295762,22.4786,155.62,155.57,0.12549]
[1729092295982,4.79789182,155.61,155.57,0.12549]
[1729092296156,6.4261,155.62,155.57,0.12549]
[1729092296779,4.79674744,155.61,155.57,0.12549]
[1729092296981,6.4261,155.62,155.57,0.12549]
[1729092297374,6.4265,155.61,155.55,26.55419]
[1729092297972,6.1227,155.64,155.57,6.4276]
[1729092298175,6.4256,155.63,155.58,0.12549]
[1729092299092,6.426,155.62,155.58,0.12549]
[1729092300396,22.4143,155.68,155.59,0.12549]
[1729092300589,4.78995617,155.67,155.59,0.12549]
[1729092300783,22.4143,155.68,155.59,0.12549]
[1729092300997,4.78664231,155.67,155.59,0.12549]
[1729092301188,22.4143,155.68,155.59,0.12549]
[1729092301500,6.425,155.64,155.59,6.55249]
[1729092302577,6.4247,155.65,155.61,0.12549]
[1729092303093,6.4242,155.66,155.62,0.12549]
[1729092303294,6.4237,155.68,155.63,6.55079]
[1729092303877,16.058,155.69,155.59,20.0]
[1729092304088,16.058,155.69,155.6,6.4267]
[1729092304089,6.4247,155.65,155.6,6.4267]
[1729092304498,6.4238,155.67,155.63,0.12549]
[1729092304675,23.776884,155.69,155.63,0.12549]
[1729092304873,6.4243,155.66,155.63,0.12549]
[1729092305075,6.4243,155.66,155.62,0.12549]
[1729092305696,23.776884,155.69,155.61,0.12549]
[1729092305897,6.4233,155.69,155.65,0.12549]
[1729092306369,6.4233,155.69,155.64,0.12549]
[1729092306772,6.4235,155.68,155.64,0.12549]
[1729092307172,16.055,155.72,155.64,0.12549]
[1729092307385,16.055,155.72,155.62,20.12549]
[1729092307581,23.776884,155.71,155.62,20.12549]
[1729092308187,6.4239,155.67,155.62,6.55099]
[1729092308391,6.4239,155.67,155.64,0.12549]
[1729092308788,23.776884,155.71,155.64,0.12549]
[1729092308789,6.4246,155.65,155.64,0.12549]
[1729092308974,6.4246,155.65,155.58,15.5519]
[1729092308975,23.776884,155.67,155.58,15.5519]
[1729092309170,6.4259,155.62,155.58,15.5519]
[1729092309385,23.776884,155.67,155.57,22.4977]
[1729092309386,29.906084,155.67,155.57,16.0698]
[1729092309576,6.4265,155.61,155.57,16.0698]
[1729092309795,6.4265,155.61,155.58,0.12549]
[1729092310183,6.4269,155.6,155.55,6.4287]
[1729092310498,6.4269,155.6,155.56,0.12549]
[1729092310801,6.4269,155.6,155.55,6.4287]
[1729092311376,6.4272,155.59,155.54,22.502]
[1729092311791,6.4272,155.59,155.56,0.12549]
[1729092315802,6.4279,155.57,155.54,20.0]
[1729092316000,6.4279,155.57,155.55,0.12549]
[1729092316483,6.4284,155.56,155.53,0.12549]
[1729092316995,21.971,155.61,155.57,0.12549]
[1729092317199,6.4268,155.6,155.57,0.12549]
[1729092317373,6.4271,155.59,155.57,0.12549]
[1729092317574,6.4271,155.59,155.54,22.5014]
[1729092317874,6.4282,155.57,155.55,0.12549]
[1729092318379,6.428,155.57,155.54,0.12549]
[1729092318590,23.776884,155.6,155.54,0.12549]
[1729092318900,30.402184,155.6,155.52,20.0]
[1729092319306,30.402184,155.6,155.53,0.12549]
[1729092319598,6.4285,155.56,155.53,0.12549]
[1729092320184,6.428,155.57,155.53,0.12549]
[1729092322577,6.4289,155.55,155.51,22.5058]
[1729092323594,6.4289,155.55,155.52,0.12549]
[1729092324410,15.5446,155.61,155.56,0.12549]
[1729092324411,6.4272,155.59,155.56,0.12549]
[1729092324584,6.4265,155.61,155.56,6.55339]
[1729092324783,6.4265,155.61,155.58,0.12549]
[1729092325103,16.6558,155.65,155.56,6.55349]
[1729092325104,6.4262,155.62,155.56,6.55349]
[1729092325300,6.4262,155.62,155.56,0.12549]
[1729092325509,6.4262,155.62,155.58,0.12549]
[1729092326379,6.4262,155.62,155.58,6.55289]
[1729092326800,16.6558,155.65,155.6,0.12549]
[1729092326988,23.0806,155.65,155.61,0.12549]
[1729092327187,16.6558,155.65,155.61,0.12549]
[1729092327580,6.4259,155.62,155.58,0.12549]
[1729092327781,6.4253,155.64,155.58,6.55259]
[1729092328403,6.4253,155.64,155.6,0.12549]
[1729092329207,6.4272,155.59,155.55,22.6748]
[1729092329500,23.776884,155.64,155.53,16.0734]
[1729092329501,6.4278,155.58,155.53,22.5028]
[1729092329882,6.4278,155.58,155.54,0.12549]
[1729092330317,16.0643,155.63,155.54,0.12549]
[1729092330318,23.776884,155.62,155.54,0.12549]
[1729092330529,6.4272,155.59,155.54,6.55459]
[1729092331121,16.0643,155.63,155.53,16.0734]
[1729092331417,6.4277,155.58,155.53,22.5026]
[1729092331622,6.4277,155.58,155.54,0.12549]
[1729092331815,23.776884,155.64,155.53,20.0]
[1729092331816,6.4284,155.56,155.53,20.0]
[1729092332112,16.0667,155.61,155.52,6.43]
[1729092332113,6.428,155.57,155.52,6.43]
[1729092332621,23.776884,155.6,155.5,22.2984]
[1729092332817,32.1867,155.59,155.51,20.0]
[1729092333119,6.4293,155.54,155.5,16.0765]
[1729092333416,6.4293,155.54,155.51,0.12549]
[1729092333795,16.1181,155.59,155.51,0.12549]
[1729092333989,6.428,155.57,155.54,0.12549]
[1729092334826,22.5456,155.59,155.55,0.12549]
[1729092335020,6.4276,155.58,155.55,0.12549]
[1729092336015,22.4069,155.64,155.57,6.4279]
[1729092336229,6.4265,155.61,155.57,6.4279]
[1729092336428,6.4265,155.61,155.53,16.0787]
[1729092336429,22.4069,155.64,155.53,16.0787]
[1729092336605,6.4292,155.54,155.51,20.0]
[1729092336925,0.1,155.62,155.52,0.12549]
[1729092336926,6.4291,155.55,155.52,0.12549]
[1729092337397,22.4069,155.64,155.52,0.12549]
[1729092337398,6.428,155.57,155.52,6.55539]
[1729092337602,6.4273,155.59,155.54,6.55449]
[1729092337813,6.4276,155.58,155.54,6.55449]
[1729092338200,23.776884,155.61,155.54,0.12549]
[1729092338406,16.0675,155.6,155.51,6.4301]
[1729092338618,6.4292,155.54,155.51,0.12549]
[1729092339220,6.4289,155.55,155.51,0.12549]
[1729092339618,23.776884,155.61,155.48,6.1139]
[1729092339619,6.4298,155.53,155.48,6.1139]
[1729092339816,6.4298,155.53,155.48,6.4315]
[1729092340497,6.4298,155.53,155.5,0.12549]
[1729092340705,6.4292,155.54,155.5,0.12549]
[1729092341024,6.4292,155.54,155.5,6.55629]
[1729092341797,22.0233,155.57,155.5,0.12549]
[1729092342003,6.4285,155.56,155.52,6.55529]
[1729092342202,22.179,155.57,155.52,6.55529]
[1729092342428,22.179,155.57,155.52,0.12549]
[1729092342616,22.179,155.57,155.54,0.12549]
[1729092342801,6.428,155.57,155.54,0.12549]
[1729092343001,6.4276,155.58,155.54,6.55459]
[1729092343421,6.4276,155.58,155.54,0.12549]
[1729092345025,6.4264,155.61,155.57,0.12549]
[1729092345402,22.5328,155.62,155.57,6.55329]
[1729092346428,22.5328,155.62,155.55,16.0713]
[1729092346429,6.4256,155.63,155.61,0.12549]
[1729092346819,6.4256,155.63,155.59,0.12549]
[1729092349402,6.4256,155.63,155.59,6.55249]
[1729092349803,6.4256,155.63,155.59,0.12549]
[1729092352306,6.4256,155.63,155.52,15.9276]
[1729092352307,39.400884,155.61,155.48,15.81]
[1729092352511,6.429,155.55,155.51,16.0751]
[1729092352804,39.400884,155.61,155.48,31.889]
[1729092352805,39.600884,155.61,155.48,31.889]
[1729092353003,12.46828643,155.6,155.48,31.889]
[1729092353213,6.4292,155.54,155.5,6.55629]
[1729092354241,6.4292,155.54,155.49,6.55669]
[1729092355935,6.4292,155.54,155.51,0.12549]
[1729092356305,6.4299,155.53,155.51,0.12549]
[1729092356705,6.4299,155.53,155.48,22.5105]
[1729092356910,6.4299,155.53,155.49,6.55669]
[1729092358007,6.4289,155.55,155.52,0.12549]
[1729092358312,43.776884,155.59,155.52,6.55519]
[1729092358516,43.776884,155.59,155.52,0.12549]
[1729092358517,6.4287,155.56,155.52,0.12549]
[1729092358716,6.4289,155.55,155.52,0.12549]
[1729092360534,6.4285,155.56,155.53,0.12549]
[1729092361231,6.429,155.55,155.51,0.12549]
[1729092361432,6.4288,155.55,155.51,0.12549]
[1729092361821,6.4288,155.55,155.51,6.55579]
[1729092362146,6.4285,155.56,155.51,6.55579]
[1729092362831,6.428,155.57,155.54,0.12549]
[1729092363222,6.4276,155.58,155.54,6.55459]
[1729092364942,6.4261,155.62,155.59,0.12549]
[1729092365111,6.4256,155.63,155.59,6.55259]
[1729092365538,15.1784,155.65,155.59,0.12549]
[1729092365739,15.1784,155.65,155.6,0.12549]
[1729092367321,6.4257,155.63,155.59,0.12549]
[1729092367532,59.840084,155.64,155.59,0.12549]
[1729092367845,6.4267,155.6,155.59,0.12549]
[1729092368050,6.4272,155.59,155.56,0.12549]
[1729092368360,6.4272,155.59,155.55,16.0715]
[1729092368530,39.840084,155.64,155.55,16.0715]
[1729092368531,6.4276,155.58,155.55,16.0715]
[1729092368724,6.4276,155.58,155.53,6.4293]
[1729092368725,6.4278,155.58,155.53,6.4293]
[1729092368939,6.4278,155.58,155.54,6.429]
[1729092369141,20.0,155.61,155.55,0.12549]
[1729092369324,23.776884,155.6,155.55,0.12549]
[1729092369523,6.4283,155.56,155.55,0.12549]
[1729092369744,6.428,155.57,155.53,0.12549]
[1729092370045,6.4278,155.58,155.53,6.55469]
[1729092370433,23.776884,155.6,155.53,6.55469]
[1729092370631,6.4276,155.58,155.53,6.55469]
[1729092371016,23.776884,155.6,155.53,6.55469]
[1729092371222,6.4284,155.56,155.53,0.12549]
[1729092372125,6.4285,155.56,155.53,0.12549]
[1729092375042,47.3037,155.65,155.58,0.12549]
[1729092375043,15.1784,155.65,155.58,0.12549]
[1729092375345,6.4263,155.62,155.58,0.12549]
[1729092375540,6.4263,155.62,155.58,6.55279]
[1729092375751,6.4271,155.59,155.55,26.4286]
[1729092375933,6.4271,155.59,155.55,6.4286]
[1729092376124,6.4271,155.59,155.56,0.12549]
[1729092376326,6.4266,155.61,155.56,6.55369]
[1729092376559,6.4267,155.6,155.56,6.55369]
[1729092376843,16.063,155.64,155.56,0.12549]
[1729092377043,4.79682096,155.63,155.52,20.0]
[1729092377248,6.4279,155.58,155.53,6.55499]
[1729092377430,0.2,155.63,155.52,16.0745]
[1729092377630,12.47227805,155.62,155.52,16.0745]
[1729092377839,4.79703002,155.61,155.53,0.12549]
[1729092378029,4.79703002,155.6,155.53,0.12549]
[1729092378226,23.776884,155.59,155.53,0.12549]
[1729092378439,6.4279,155.58,155.53,6.55469]
[1729092379453,6.428,155.57,155.53,6.55469]
[1729092381750,6.428,155.57,155.53,0.12549]
[1729092384434,43.876884,155.58,155.46,15.8252]